Cogmind - Beta 13 @@@ ROGUE MODE // 2024.07.05 @ 14:30:44 Player: Juicifer Result: Destroyed by D-53 Grenadier with Mini Grenade Launcher Performance ------------- Evolutions (0) 0 Regions Visited (2) 400 Robots Destroyed (17) 85 Value Destroyed (254) 254 Prototype IDs (0) 0 Alien Tech Used (0) 0 Bonus (0) 0 TOTAL SCORE: 739 Bonus ------- None Cogmind --------- Core Integrity 0/250 Matter 141/300 Energy 250/250 System Corruption 3% Temperature Cool (49) Movement Walking (680) Ox8 Location -10/Mines Parts ------- > --- POWER (1) -------- Ion Engine > --- PROPULSION (2) --- Aluminum Leg > --- UTILITY (2) ------ Huge Storage Unit > --- WEAPON (2) ------- Medium Laser > --- INVENTORY (25) --- Light Ion Engine Aluminum Leg High-capacity Matter Pod (0) Propulsion Shielding Light Armor Plating Medium Laser Beam Cannon Peak State ------------ > --- POWER ------------ Light Ion Engine > --- PROPULSION ------- Aluminum Leg Aluminum Leg > --- UTILITY ---------- Small Storage Unit Tractor Beam > --- WEAPON ----------- Medium Laser Assault Rifle > --- INVENTORY -------- Ion Engine Medium Laser Grenade Launcher [Rating: 7] Favorites ----------- Power Ion Engine Engine Ion Engine Propulsion Aluminum Leg Leg Aluminum Leg Utility Tractor Beam Device Tractor Beam Storage Huge Storage Unit Weapon Assault Rifle Energy Gun Medium Laser Ballistic Gun Assault Rifle Launcher Grenade Launcher Build | -11 -10 -10 ------- Run | Yrd Mat Min Slots Evolved . | . . . Power . | . . . Propulsion . | . . . Utility . | . . . Weapon . | . . . Parts Attached 19 | 6 13 . Power 3 | 1 2 . Engine 3 | 1 2 . Core . | . . . Reactor . | . . . Propulsion 5 | 2 3 . Treads . | . . . Leg 5 | 2 3 . Wheel . | . . . Hover . | . . . Flight . | . . . Utility 5 | 1 4 . Device 2 | . 2 . Storage 3 | 1 2 . Processor . | . . . Hackware . | . . . Protection . | . . . Artifact . | . . . Weapon 6 | 2 4 . Energy Gun 2 | 1 1 . Energy Cannon . | . . . Ballistic Gun 2 | 1 1 . Ballistic Cannon . | . . . Launcher 2 | . 2 . Special Weapon . | . . . Impact Weapon . | . . . Slashing Weapon . | . . . Piercing Weapon . | . . . Special Melee Weapon . | . . . Unidentified Prototypes . | . . . Parts Lost 4 | . 1 3 Power . | . . . Propulsion 1 | . . 1 Utility 1 | . . 1 Weapon 2 | . 1 1 Highest Loss Streak 3 | . 1 3 To Critical Strikes . | . . . Average Slot Usage (%) 91 | . 90 100 Engine 13 | . 13 14 Leg 26 | . 26 28 Device 12 | . 12 14 Storage 14 | . 14 14 Energy Gun 8 | . 7 14 Ballistic Gun 13 | . 13 14 Launcher 1 | . 2 . Naked Turns . | . . . Heaviest Build 90 | 12 90 90 Greatest Support 20 | 20 20 20 Greatest Overweight (x) 26 | . 26 4 Average Overweight (x) 3 | . 3 4 Largest Inventory Capacity 25 | 8 25 25 Average Capacity 23 | 6 23 25 Most Carried 9 | 4 9 7 Average Carried 4 | 1 4 6 Final Capacity 25 | 8 25 25 Final Carried 7 | 2 6 7 Class Distribution -------------------- 100% | Mutant Dominant Class ---------------- Mutant | -10/Materials Mutant | -10/Mines Resources | -11 -10 -10 ----------- Run | Yrd Mat Min Matter Collected 477 | 190 188 99 Remotely 287 | . 188 99 Salvage Created 331 | . 232 99 Parts 23 | . 22 1 Haulers Intercepted 2 | . 2 . Recyclers Shooed . | . . . Parts Field Recycled . | . . . Retrieved Matter . | . . . Parts Self-Destructed . | . . . Prevented . | . . . Kills | -11 -10 -10 ------- Run | Yrd Mat Min Combat Hostiles Destroyed 11 | . 9 2 Guns 5 | . 3 2 AOE 6 | . 6 . Classes Destroyed 5 | . 5 . Tunneler 1 | . 1 . Hauler 2 | . 2 . Watcher 3 | . 3 . Swarmer 8 | . 8 . Grunt 3 | . 1 2 Best Kill Streak 6 | . 6 2 Combat Bots Only 5 | . 5 2 Max Kills in Single Turn 3 | . 3 1 Gunslinging . | . . . Exploded 3 | . 3 . Melee . | . . . Uniques/NPCs Destroyed . | . . . Combat | -11 -10 -10 -------- Run | Yrd Mat Min Hostile Shots Fired 73 | . 44 29 Missed 16 | . 12 4 Damage Taken 744 | . 315 429 Core 267 | . 118 149 Absorbed by Shields . | . . . Core Remaining (%) 100 | 100 . . Volleys Fired 36 | . 22 14 Largest 2 | . 2 2 Hottest 70 | . 70 70 Shots Fired 66 | . 38 28 Gun 57 | . 29 28 Cannon . | . . . Launcher 9 | . 9 . Special . | . . . Kinetic 36 | . 22 14 Thermal 21 | . 7 14 Explosive 9 | . 9 . Electromagnetic . | . . . Robot Hit Streak 6 | . 5 6 Robot Miss Streak 6 | . 6 2 Penetration Max . | . . . Secondary Targets 1 | . . 1 Max Gunslinging Chain 1 | . . 1 Shots Hit Robots 35 | . 15 20 Core Hits 27 | . 22 5 Critical Kills . | . . . Critical Parts Destroyed . | . . . Critical Strikes 5 | . 1 4 Burn 5 | . 1 4 Melee Attacks . | . . . Impact . | . . . Slashing . | . . . Piercing . | . . . Sneak Attacks . | . . . Combat Hostiles . | . . . Follow-up Attacks . | . . . Damage Inflicted 872 | . 605 267 Guns 422 | . 158 264 Cannons . | . . . Explosions 445 | . 445 . Melee . | . . . Ramming 5 | . 2 3 Kinetic 220 | . 96 124 Thermal 202 | . 62 140 Explosive 445 | . 445 . Electromagnetic . | . . . Impact . | . . . Slashing . | . . . Piercing . | . . . Highest Corruption 3 | . 2 3 Average Corruption 2 | . 2 2 Corruption Purged . | . . . Corruption Blocked . | . . . Effects 24 | . 21 3 Message Errors 4 | . 2 2 Matter Fused 11 | . 11 . Heat Flow Errors 4 | . 3 1 Energy Discharges 2 | . 2 . Data Loss (minor) 2 | . 2 . Alerts 1 | . 1 . Overload Shots . | . . . Overflow Damage 15 | . 15 . Projectiles . | . . . Explosions 15 | . 15 . Melee . | . . . Knockbacks . | . . . Impact . | . . . Kinetic . | . . . Secondary . | . . . Self-Inflicted Damage 59 | . 59 . Shots 3 | . 3 . Rammed . | . . . Targets Rammed 2 | . 1 1 Kicked 2 | . 1 1 Crushed . | . . . Highest Temperature 249 | . 179 249 Average Temperature 87 | . 51 113 Received Heat Transfer 148 | . 12 136 Effects 1 | . . 1 Energy Bleed 1 | . . 1 Siege Activations . | . . . Robots Corrupted . | . . . Combat Hostiles . | . . . Parts Fried . | . . . Impact Corruptions . | . . . Robots Melted . | . . . Combat Hostiles . | . . . Parts Melted 2 | . . 2 Heat Transferred 962 | . 259 703 Parts Sabotaged . | . . . Parts Stolen . | . . . Parts Stripped . | . . . Power Chain Reactions . | . . . Alert | -11 -10 -10 ------- Run | Yrd Mat Min Peak Influence 192 | . 192 50 Initial . | . . . Average 38 | . 42 25 Maximum Alert Level . | . . . Low Security (%) 100 | 100 100 100 Level 1 . | . . . Level 2 . | . . . Level 3 . | . . . Level 4 . | . . . Level 5 . | . . . High Security . | . . . Max Security . | . . . Squads Dispatched 2 | . 2 . Investigation . | . . . Extermination . | . . . Reinforcement 2 | . 2 . Assault . | . . . Garrison . | . . . Intercept . | . . . Searches Triggered . | . . . Construction Impeded . | . . . Haulers Reinforced . | . . . Active Scanning Responses . | . . . Cargo Convoy Interrupts . | . . . Stealth | -11 -10 -10 --------- Run | Yrd Mat Min Distress Signals . | . . . Communications Jammed . | . . . Distress Signals . | . . . Times Spotted 30 | . 13 17 Peak Tracking Total 15 | . 3 15 Tactical Retreats . | . . . Traps | -11 -10 -10 ------- Run | Yrd Mat Min Traps Triggered 5 | . 5 . Indirectly . | . . . Trap Hack Attempts . | . . . Triggered . | . . . Disarmed 6 | . 6 . Reprogrammed . | . . . Reused . | . . . Traps Extracted . | . . . Installed . | . . . Triggered . | . . . Machines | -11 -10 -10 ---------- Run | Yrd Mat Min Machines Disabled . | . . . Max in Single Turn . | . . . Machines Repaired . | . . . Machines Dismantled . | . . . Machines Sabotaged . | . . . Overloaded Fab Kills . | . . . Hacking | -11 -10 -10 --------- Run | Yrd Mat Min Machines Accessed 4 | . 4 . Terminals 2 | . 2 . Fabricators . | . . . Repair Stations . | . . . Recycling Units 2 | . 2 . Scanalyzers . | . . . Garrison Access . | . . . Total Hacks 10 | . 10 . Successful 3 | . 3 . Failed 7 | . 7 . Catastrophic . | . . . Database Lockouts . | . . . Manual . | . . . Terminals 6 | . 6 . Fabricators . | . . . Repair Stations . | . . . Recycling Units 4 | . 4 . Scanalyzers . | . . . Garrison Access . | . . . Terminal Hacks 1 | . 1 . Disarm Traps 1 | . 1 . Fabricator Hacks . | . . . Repair Station Hacks . | . . . Recycling Unit Hacks 2 | . 2 . Report Inventory 2 | . 2 . Scanalyzer . | . . . Garrison Access Hacks . | . . . Unauthorized Hacks . | . . . Terminals . | . . . Fabricators . | . . . Repair Stations . | . . . Recycling Units . | . . . Scanalyzers . | . . . Garrison Access . | . . . Data Cores Recovered . | . . . Used . | . . . Hacking Detections 3 | . 3 . Full Trace Events 1 | . 1 . Feedback Events . | . . . Feedback Blocked . | . . . Robot Schematics Acquired . | . . . Robots Built . | . . . Authchips . | . . . Time . | . . . Total Robot Build Rating . | . . . Part Schematics Acquired . | . . . Parts Built . | . . . Authchips . | . . . Time . | . . . Total Part Build Rating . | . . . Parts Repaired . | . . . Time . | . . . Parts Recycled . | . . . Recycled Matter . | . . . Retrieved Matter . | . . . Retrieved Components . | . . . Parts Scanalyzed . | . . . Part Schematics Acquired . | . . . Parts Damaged . | . . . Bothacking | -11 -10 -10 ------------ Run | Yrd Mat Min Used RIF Installer . | . . . Robots Hacked . | . . . Non-combat . | . . . Combat . | . . . Robot Hacks Applied . | . . . Relay Couplers Released . | . . . Fabnet Peak Effective % . | . . . Robots Rewired . | . . . Allies Hacked . | . . . Hacks Repelled . | . . . Allies | -11 -10 -10 -------- Run | Yrd Mat Min Total Allies . | . . . Largest Group . | . . . Highest-Rated Group . | . . . Highest-Rated Ally . | . . . Total Orders . | . . . Ally Attacks . | . . . Total Damage . | . . . Kills . | . . . Allies Corrupted . | . . . Allies Melted . | . . . Intel | -11 -10 -10 ------- Run | Yrd Mat Min Robot Analysis Total . | . . . Derelict Logs Recovered 1 | . . 1 Drone Launches . | . . . Drone Recoveries . | . . . Exploration | -11 -10 -10 ------------- Run | Yrd Mat Min Turns Passed 2376 | 64 1988 324 Spaces Moved 656 | 46 543 67 Core 14 | 6 8 . Treads . | . . . Legs 642 | 40 535 67 Wheels . | . . . Hover . | . . . Flight . | . . . Fastest Speed 50 | 50 120 400 Average Speed 335 | 110 346 400 Slowest Speed 1350 | 120 1350 400 Overloaded Moves . | . . . Propulsion Burnouts . | . . . Robots Hopped . | . . . Cave-ins Triggered . | . . . Exploration Rate (%) 35 | 4 85 17 Regions Visited 2 Branch Regions 1 Pre-discovered Areas . | . . . Known Exits Taken . | . . . Unknown Exits Taken 2 | 1 1 . Scrap Searched . | . . . Spaces Dug . | . . . Terrain Destroyed 49 | . 49 . Melee . | . . . Projectile . | . . . AOE 49 | . 49 . Terrain Rammed . | . . . Walls Destroyed . | . . . Machines Disabled . | . . . Actions | -11 -10 -10 --------- Run | Yrd Mat Min Total 760 | 59 609 92 Wait 20 | . 11 9 Move 654 | 45 542 67 Hop . | . . . Pick Up 25 | 8 16 1 Fast Attach . | . . . Attach 14 | 6 8 . Detach . | . . . Swap 5 | . 5 . Drop 4 | . 4 . Fire 36 | . 22 14 Melee . | . . . Ram . | . . . Kick 2 | . 1 1 Crush . | . . . Escape Stasis . | . . . Rewire . | . . . Trap . | . . . Miscellaneous . | . . . Route ------- -11/Scrapyard -10/Materials (discovered 4 exits: [*Mat x2] / [*Min x2]) -10/Mines (discovered 1 exit: [*Mat]) History --------- Turn | Location | Event 2 | -11/Scrapyard | Met Revision 17 3 | -11/Scrapyard | Discovered new exit (range 16) 65 | -11/Scrapyard | Entered Materials 242 | -10/Materials | Discovered new exit (range 5) 284 | -10/Materials | Discovered new exit (range 7) 317 | -10/Materials | Build established: Mutant 1049 | -10/Materials | Discovered new exit (range 16) 2029 | -10/Materials | Discovered new exit (range 6) 2053 | -10/Materials | Entered Mines 2121 | -10/Mines | Learned Materials security intel 2161 | -10/Mines | Discovered new exit (range 10) 2190 | -10/Mines | Core integrity fell below 50% 2359 | -10/Mines | Assembled infested the area 2377 | -10/Mines | Core integrity fell below 20% 2377 | -10/Mines | Destroyed by D-53 Grenadier with Mini Grenade Launcher Last Messages --------------- as-28361 powers down. as-94843 powers down. as-35003 powers down. as-99166 powers down. as-55398 powers down. as-17370 powers down. as-37124 powers down. as-60152 powers down. as-10238 powers down. as-46737 powers down. Assault Rifle destroyed. System corrupted by crushing effect (+1). Aluminum Leg destroyed. as-55398 destroyed. as-10238 destroyed. as-39357 destroyed. as-04598 destroyed. as-47391 destroyed. as-46737 destroyed. as-99166 destroyed. Map ----- +----------------------------------------------------+ | ????????????????????????????????????????? | | ????????????????????????????????????????? | | ????????????????????????????????????????? | | ????????????????????????????????????????? | | ????????????????????????????????????????? | | ????????????????????????????????????????? | | ????????????????????????????????????????? | | ????????????????????????????????????????? | | ????????????????????????????????????????? | | ????????????????????????????????????????? | | ????????????????????????????????????????? | | ????????????????????????????????????????? | | ???????????????????????????????########?? | | ???????????????????????????????# #?? | | ???????????????????????????????# #?? | | ???????????????????????????????# < #?? | | ?????????????????????###???##### #?? | | ????????????????????## ### ## #?? | | ????????????????????# ##### ##?? | | ????????????????????? #???# #??? | | ?????????????????????? #???# #??? | | ??????????????????##### #???# #??? | | ???????????######## #????# #??? | | ?????????? a a %a% #?????# #??? | | ????????????? a aa%a% % #?###### #??? | | ???????????????????# %@ #?# #??? | | ???????????????????#### % #?# #??? | | ??????????????????????# #?# #####??? | | ??????????????????????# d #?# #??????? | | ??????????????????????# d ### #??????? | | ?????????????????????## % #??????? | | ???????????????????### #??????? | | ??????????????????## #####??????? | | ?????????????????## r##?????????? | | ????????????????## ####??????? | | ????????????????# ##?????? | | ????????????????# #?????? | | ????????????????# #?????? | | ????????????????# ##?????? | | ????????????????## ##### ##??????? | | ?????????????????### #???? ##???????? | | ???????????????????## ##???$ #????????? | | ????????????????????## ##?? #????????? | | ?????????????????????# #?? ????????? | | ?????????????????????# #?? #????????? | | ??????????????????# ## #??##?????????? | | ??????????????????# #?????????????? | | ??????????????????#### #?????????????? | | ?????????????????????## ##?????????????? | | ??????????????????????####??????????????? | +----------------------------------------------------+ Best States ------------- Heat Dissipation 25 Energy Generation 10 Energy Capacity 250 Matter Stores 230 Matter Capacity 300 Sight Range 16 Terrain Scan Density 10 Evasion (%) 55 Item Schematics ----------------- None Robot Schematics ------------------ None Fabricated ------------ Nothing Alien Tech Used ----------------- None Achievements -------------- None Challenges ------------ None Game ------ Seed DirtyShockPenetrator Manual? 0 Play Time 00:11:08 Cumulative 4.9 hours Start 2024.07.05 @ 14:20:43 End 2024.07.05 @ 14:30:44 Sessions 1 Manual Loads 0 Difficulty Rogue Special Mode None Game No. 11 Rogue 11 Adventurer 0 Explorer 0 Win Type - Total 0 Types 0/0/0/0/0/0/0/0/0 Lore% 1 Gallery% 8 Achievement% 5 Wizard Run 0 Options --------- Layout 1 ASCII 0 Keyboard 0 Movement Mouse Keybinds 0 Fullscreen 1 Font 24/Crisp Map View 50x35 Zoom Use 0% Tactical HUD 0 Map Filters NONE Filters NONE Steam 1 RUN: be294ae9-274d-443e-b50f-b12bbaffad29